[Event "Titled Tuesday Blitz July 25 Early 2023"]
[White "Tsaruk, Maksim"]
[Black "Martic, Ivan"]
[WhiteFideId "13511173"]
[BlackFideId "929301"]
[WhiteElo "2786"]
[BlackElo "2632"]
[Result "1-0"]
[Round "5"]
[TimeControl "180+2"]
[Date "2023.07.25"]
[WhiteClock "0:00:12"]
[BlackClock "0:00:08"]
[Board "49"]

1. e4 {[%clk 0:02:56]}  c5 {[%clk 0:02:59]} 2. Nf3 {[%clk 0:02:56]}  e6 {[%clk 0:03:00]} 3. d4 {[%clk 0:02:57]}  cxd4 {[%clk 0:03:00]} 4. Nxd4 {[%clk 0:02:57]}  a6 {[%clk 0:03:01]} 5. c4 {[%clk 0:02:57]}  Nf6 {[%clk 0:02:58]} 6. Nc3 {[%clk 0:02:58]}  d6 {[%clk 0:02:57]} 7. Be2 {[%clk 0:02:57]}  Be7 {[%clk 0:02:57]} 8. O-O {[%clk 0:02:58]}  O-O {[%clk 0:02:57]} 9. Be3 {[%clk 0:02:58]}  Qc7 {[%clk 0:02:52]} 10. Rc1 {[%clk 0:02:57]}  b6 {[%clk 0:02:52]} 11. Qd2 {[%clk 0:02:54]}  Bb7 {[%clk 0:02:51]} 12. f3 {[%clk 0:02:55]}  Nbd7 {[%clk 0:02:52]} 13. Rfd1 {[%clk 0:02:55]}  Rac8 {[%clk 0:02:52]} 14. b4 {[%clk 0:02:55]}  Qb8 {[%clk 0:02:51]} 15. Qe1 {[%clk 0:02:51]}  Rfe8 {[%clk 0:02:49]} 16. Nb3 {[%clk 0:02:50]}  d5 {[%clk 0:02:36]} 17. exd5 {[%clk 0:02:32]}  Bxb4 {[%clk 0:02:25]} 18. Qf2 {[%clk 0:02:14]}  Bd6 {[%clk 0:01:59]} 19. g3 {[%clk 0:01:56]}  exd5 {[%clk 0:01:59]} 20. Nxd5 {[%clk 0:01:55]}  Nxd5 {[%clk 0:01:56]} 21. cxd5 {[%clk 0:01:56]}  Rxc1 {[%clk 0:01:22]} 22. Rxc1 {[%clk 0:01:55]}  Bxd5 {[%clk 0:01:13]} 23. Bxa6 {[%clk 0:01:53]}  b5 {[%clk 0:01:02]} 24. Ba7 {[%clk 0:01:30]}  Qa8 {[%clk 0:00:57]} 25. Bxb5 {[%clk 0:01:30]}  Rd8 {[%clk 0:00:47]} 26. f4 {[%clk 0:00:46]}  Nf6 {[%clk 0:00:43]} 27. Qb6 {[%clk 0:00:31]}  Bh1 {[%clk 0:00:36]} 28. Bc6 {[%clk 0:00:31]}  Bxc6 {[%clk 0:00:34]} 29. Rxc6 {[%clk 0:00:32]}  Nd5 {[%clk 0:00:29]} 30. Qa5 {[%clk 0:00:14]}  Ne3 {[%clk 0:00:18]} 31. Bxe3 {[%clk 0:00:12]}  Qxc6 {[%clk 0:00:12]} 32. Qxd8+ {[%clk 0:00:12]}  Bf8 {[%clk 0:00:08]} 33. Bc5 {[%clk 0:00:12]} 1-0


[Site "https://www.chess.com"]

[Event "Titled Tuesday Blitz July 25 Early 2023"]
[White "Pakleza, Zbigniew"]
[Black "Lenaerts, Lennert"]
[WhiteFideId "1119290"]
[BlackFideId "211435"]
[WhiteElo "2784"]
[BlackElo "2621"]
[Result "1/2-1/2"]
[Round "5"]
[TimeControl "180+2"]
[Date "2023.07.25"]
[WhiteClock "0:00:04"]
[BlackClock "0:00:10"]
[Board "50"]

1. d4 {[%clk 0:03:00]}  d5 {[%clk 0:02:59]} 2. Bf4 {[%clk 0:03:00]}  Nf6 {[%clk 0:02:59]} 3. e3 {[%clk 0:03:00]}  c5 {[%clk 0:02:59]} 4. c3 {[%clk 0:03:01]}  e6 {[%clk 0:02:59]} 5. Nd2 {[%clk 0:03:01]}  Bd6 {[%clk 0:02:59]} 6. Bg3 {[%clk 0:03:02]}  O-O {[%clk 0:02:59]} 7. Ngf3 {[%clk 0:03:02]}  b6 {[%clk 0:03:00]} 8. Ne5 {[%clk 0:03:02]}  Bb7 {[%clk 0:03:00]} 9. f4 {[%clk 0:03:01]}  Ne4 {[%clk 0:03:00]} 10. Nxe4 {[%clk 0:03:01]}  dxe4 {[%clk 0:03:00]} 11. Be2 {[%clk 0:02:59]}  f6 {[%clk 0:02:52]} 12. Nc4 {[%clk 0:02:59]}  Be7 {[%clk 0:02:52]} 13. O-O {[%clk 0:02:52]}  cxd4 {[%clk 0:02:47]} 14. cxd4 {[%clk 0:02:52]}  Bd5 {[%clk 0:02:46]} 15. f5 {[%clk 0:02:39]}  Nc6 {[%clk 0:02:46]} 16. fxe6 {[%clk 0:02:36]}  Bxe6 {[%clk 0:02:46]} 17. Rc1 {[%clk 0:02:35]}  Rc8 {[%clk 0:02:41]} 18. Qa4 {[%clk 0:02:20]}  Qd7 {[%clk 0:02:31]} 19. Nd2 {[%clk 0:01:56]}  Bd5 {[%clk 0:01:58]} 20. Ba6 {[%clk 0:01:47]}  Rcd8 {[%clk 0:01:58]} 21. Bb5 {[%clk 0:01:43]}  Rc8 {[%clk 0:01:57]} 22. Ba6 {[%clk 0:01:43]}  Rcd8 {[%clk 0:01:57]} 23. a3 {[%clk 0:01:23]}  Qe6 {[%clk 0:01:23]} 24. Bb5 {[%clk 0:01:17]}  Rc8 {[%clk 0:01:23]} 25. Rc3 {[%clk 0:01:16]}  a5 {[%clk 0:01:19]} 26. Rfc1 {[%clk 0:01:12]}  Nb8 {[%clk 0:01:18]} 27. Qc2 {[%clk 0:00:40]}  Rxc3 {[%clk 0:01:01]} 28. Qxc3 {[%clk 0:00:41]}  f5 {[%clk 0:00:36]} 29. Be5 {[%clk 0:00:41]}  Bg5 {[%clk 0:00:32]} 30. Nf1 {[%clk 0:00:33]}  Nd7 {[%clk 0:00:29]} 31. Bf4 {[%clk 0:00:25]}  Bxf4 {[%clk 0:00:28]} 32. exf4 {[%clk 0:00:26]}  Nf6 {[%clk 0:00:24]} 33. Ne3 {[%clk 0:00:23]}  Kh8 {[%clk 0:00:24]} 34. h3 {[%clk 0:00:22]}  Bb7 {[%clk 0:00:19]} 35. Kf2 {[%clk 0:00:09]}  Rc8 {[%clk 0:00:17]} 36. Qd2 {[%clk 0:00:10]}  h6 {[%clk 0:00:17]} 37. d5 {[%clk 0:00:04]}  Qd6 {[%clk 0:00:16]} 38. Rxc8+ {[%clk 0:00:04]}  Bxc8 {[%clk 0:00:16]} 39. g3 {[%clk 0:00:04]}  Bb7 {[%clk 0:00:17]} 40. Bc4 {[%clk 0:00:04]}  b5 {[%clk 0:00:16]} 41. Bxb5 {[%clk 0:00:03]}  Nxd5 {[%clk 0:00:14]} 42. Nxd5 {[%clk 0:00:04]}  Bxd5 {[%clk 0:00:14]} 43. Qd4 {[%clk 0:00:04]}  Qe6 {[%clk 0:00:11]} 44. Ke3 {[%clk 0:00:04]}  Bb7 {[%clk 0:00:09]} 45. Bc4 {[%clk 0:00:04]}  Qe7 {[%clk 0:00:07]} 46. Qe5 {[%clk 0:00:04]}  Qd8 {[%clk 0:00:05]} 47. Qd4 {[%clk 0:00:04]}  Qc7 {[%clk 0:00:05]} 48. b4 {[%clk 0:00:03]}  axb4 {[%clk 0:00:05]} 49. axb4 {[%clk 0:00:04]}  Kh7 {[%clk 0:00:06]} 50. g4 {[%clk 0:00:03]}  fxg4 {[%clk 0:00:06]} 51. hxg4 {[%clk 0:00:04]}  Qc8 {[%clk 0:00:06]} 52. f5 {[%clk 0:00:04]}  Qb8 {[%clk 0:00:07]} 53. Bd5 {[%clk 0:00:02]}  Qg3+ {[%clk 0:00:07]} 54. Kxe4 {[%clk 0:00:02]}  Qg2+ {[%clk 0:00:07]} 55. Ke5 {[%clk 0:00:02]}  Qg3+ {[%clk 0:00:07]} 56. Ke6 {[%clk 0:00:02]}  Bc8+ {[%clk 0:00:07]} 57. Ke7 {[%clk 0:00:01]}  Qc7+ {[%clk 0:00:07]} 58. Kf8 {[%clk 0:00:02]}  Qd8+ {[%clk 0:00:07]} 59. Kf7 {[%clk 0:00:02]}  Qd7+ {[%clk 0:00:08]} 60. Kf8 {[%clk 0:00:03]}  Qd6+ {[%clk 0:00:08]} 61. Kf7 {[%clk 0:00:03]}  Qd7+ {[%clk 0:00:08]} 62. Kf8 {[%clk 0:00:03]}  Qd8+ {[%clk 0:00:09]} 63. Kf7 {[%clk 0:00:04]}  Qd7+ {[%clk 0:00:10]} 1/2-1/2


[Site "https://www.chess.com"]

[Event "Titled Tuesday Blitz July 25 Early 2023"]
[White "Lobanov, Sergei"]
[Black "Ahmad, Khagan"]
[WhiteFideId "24183750"]
[BlackFideId "13431552"]
[WhiteElo "2780"]
[BlackElo "2596"]
[Result "1-0"]
[Round "5"]
[TimeControl "180+2"]
[Date "2023.07.25"]
[WhiteClock "0:02:43"]
[BlackClock "0:00:29"]
[Board "51"]

1. d4 {[%clk 0:03:00]}  Nf6 {[%clk 0:02:56]} 2. c4 {[%clk 0:03:01]}  e6 {[%clk 0:02:56]} 3. Nc3 {[%clk 0:03:02]}  Bb4 {[%clk 0:02:54]} 4. e3 {[%clk 0:03:02]}  O-O {[%clk 0:02:53]} 5. Bd3 {[%clk 0:03:02]}  c5 {[%clk 0:02:52]} 6. Ne2 {[%clk 0:03:02]}  d5 {[%clk 0:02:46]} 7. a3 {[%clk 0:02:58]}  Bxc3+ {[%clk 0:02:31]} 8. bxc3 {[%clk 0:02:59]}  Qc7 {[%clk 0:02:25]} 9. cxd5 {[%clk 0:02:57]}  exd5 {[%clk 0:02:23]} 10. O-O {[%clk 0:02:57]}  Nc6 {[%clk 0:02:16]} 11. f3 {[%clk 0:02:58]}  Re8 {[%clk 0:02:12]} 12. Ng3 {[%clk 0:02:58]}  b6 {[%clk 0:01:48]} 13. Ra2 {[%clk 0:02:57]}  a5 {[%clk 0:01:26]} 14. Raf2 {[%clk 0:02:57]}  Ba6 {[%clk 0:01:10]} 15. Bxa6 {[%clk 0:02:58]}  Rxa6 {[%clk 0:01:11]} 16. e4 {[%clk 0:02:58]}  cxd4 {[%clk 0:00:39]} 17. cxd4 {[%clk 0:02:58]}  dxe4 {[%clk 0:00:38]} 18. fxe4 {[%clk 0:02:59]}  Ra7 {[%clk 0:00:37]} 19. Rxf6 {[%clk 0:02:49]}  gxf6 {[%clk 0:00:37]} 20. Nh5 {[%clk 0:02:50]}  Kh8 {[%clk 0:00:35]} 21. Nxf6 {[%clk 0:02:45]}  Rd8 {[%clk 0:00:29]} 22. Qh5 {[%clk 0:02:43]} 1-0


[Site "https://www.chess.com"]

[Event "Titled Tuesday Blitz July 25 Early 2023"]
[White "Tristan, Leonardo"]
[Black "Yaran, Siar"]
[WhiteFideId "113816"]
[BlackFideId "6323006"]
[WhiteElo "2774"]
[BlackElo "2587"]
[Result "0-1"]
[Round "5"]
[TimeControl "180+2"]
[Date "2023.07.25"]
[WhiteClock "0:00:04"]
[BlackClock "0:00:07"]
[Board "52"]

1. d4 {[%clk 0:03:00]}  Nf6 {[%clk 0:02:56]} 2. Nf3 {[%clk 0:03:01]}  e6 {[%clk 0:02:56]} 3. Bf4 {[%clk 0:03:01]}  d5 {[%clk 0:02:56]} 4. e3 {[%clk 0:03:01]}  Bd6 {[%clk 0:02:57]} 5. Nbd2 {[%clk 0:03:01]}  O-O {[%clk 0:02:57]} 6. c3 {[%clk 0:03:01]}  c5 {[%clk 0:02:57]} 7. Bd3 {[%clk 0:03:01]}  b6 {[%clk 0:02:51]} 8. Qe2 {[%clk 0:02:28]}  Bb7 {[%clk 0:02:48]} 9. O-O {[%clk 0:01:58]}  Nc6 {[%clk 0:02:44]} 10. Bxd6 {[%clk 0:01:55]}  Qxd6 {[%clk 0:02:43]} 11. e4 {[%clk 0:01:54]}  dxe4 {[%clk 0:02:23]} 12. Nxe4 {[%clk 0:01:54]}  Nxe4 {[%clk 0:02:20]} 13. Qxe4 {[%clk 0:01:55]}  g6 {[%clk 0:02:02]} 14. dxc5 {[%clk 0:01:35]}  Qxc5 {[%clk 0:01:54]} 15. Qh4 {[%clk 0:01:34]}  Kg7 {[%clk 0:01:31]} 16. Rfe1 {[%clk 0:01:24]}  Rad8 {[%clk 0:01:23]} 17. Be4 {[%clk 0:01:24]}  Rd6 {[%clk 0:01:18]} 18. Qf4 {[%clk 0:00:46]}  Rfd8 {[%clk 0:01:04]} 19. Ng5 {[%clk 0:00:39]}  f5 {[%clk 0:01:03]} 20. Bxc6 {[%clk 0:00:26]}  Qxc6 {[%clk 0:00:50]} 21. Qe5+ {[%clk 0:00:26]}  Kg8 {[%clk 0:00:50]} 22. f3 {[%clk 0:00:27]}  Re8 {[%clk 0:00:37]} 23. Rad1 {[%clk 0:00:22]}  Rd5 {[%clk 0:00:14]} 24. Qf6 {[%clk 0:00:19]}  Qd7 {[%clk 0:00:13]} 25. Rxd5 {[%clk 0:00:12]}  Bxd5 {[%clk 0:00:14]} 26. b3 {[%clk 0:00:12]}  b5 {[%clk 0:00:14]} 27. Rd1 {[%clk 0:00:12]}  Qg7 {[%clk 0:00:13]} 28. Qxg7+ {[%clk 0:00:10]}  Kxg7 {[%clk 0:00:14]} 29. Rd4 {[%clk 0:00:07]}  Rc8 {[%clk 0:00:14]} 30. Rd3 {[%clk 0:00:06]}  h6 {[%clk 0:00:14]} 31. Nh3 {[%clk 0:00:06]}  g5 {[%clk 0:00:14]} 32. Nf2 {[%clk 0:00:07]}  Kf6 {[%clk 0:00:15]} 33. Nd1 {[%clk 0:00:07]}  Rc7 {[%clk 0:00:13]} 34. Ne3 {[%clk 0:00:07]}  Bb7 {[%clk 0:00:14]} 35. Nc2 {[%clk 0:00:08]}  a6 {[%clk 0:00:12]} 36. Kf2 {[%clk 0:00:07]}  e5 {[%clk 0:00:11]} 37. Ke1 {[%clk 0:00:08]}  Ke6 {[%clk 0:00:11]} 38. Kd2 {[%clk 0:00:08]}  Rd7 {[%clk 0:00:12]} 39. Nb4 {[%clk 0:00:07]}  e4 {[%clk 0:00:08]} 40. Rxd7 {[%clk 0:00:06]}  Kxd7 {[%clk 0:00:09]} 41. Ke3 {[%clk 0:00:05]}  exf3 {[%clk 0:00:09]} 42. gxf3 {[%clk 0:00:05]}  f4+ {[%clk 0:00:09]} 43. Kf2 {[%clk 0:00:06]}  Kd6 {[%clk 0:00:09]} 44. Nc2 {[%clk 0:00:05]}  Ke5 {[%clk 0:00:09]} 45. Nd4 {[%clk 0:00:05]}  h5 {[%clk 0:00:08]} 46. h3 {[%clk 0:00:05]}  b4 {[%clk 0:00:07]} 47. Ne2 {[%clk 0:00:05]}  bxc3 {[%clk 0:00:07]} 48. Nxc3 {[%clk 0:00:06]}  Kd4 {[%clk 0:00:08]} 49. Na4 {[%clk 0:00:05]}  Bc6 {[%clk 0:00:08]} 50. Nb6 {[%clk 0:00:04]}  Kc3 {[%clk 0:00:08]} 51. Nc4 {[%clk 0:00:04]}  Bd7 {[%clk 0:00:02]} 52. Ne5 {[%clk 0:00:04]}  Bxh3 {[%clk 0:00:03]} 53. Nc6 {[%clk 0:00:02]}  g4 {[%clk 0:00:02]} 54. fxg4 {[%clk 0:00:02]}  hxg4 {[%clk 0:00:03]} 55. Nb8 {[%clk 0:00:03]}  a5 {[%clk 0:00:03]} 56. Nc6 {[%clk 0:00:04]}  Kd3 {[%clk 0:00:03]} 57. Nxa5 {[%clk 0:00:03]}  Ke4 {[%clk 0:00:04]} 58. Nc4 {[%clk 0:00:04]}  g3+ {[%clk 0:00:04]} 59. Kg1 {[%clk 0:00:04]}  f3 {[%clk 0:00:05]} 60. Nd2+ {[%clk 0:00:04]}  Kf4 {[%clk 0:00:06]} 61. Nxf3 {[%clk 0:00:04]}  Kxf3 {[%clk 0:00:06]} 62. a4 {[%clk 0:00:04]}  Bd7 {[%clk 0:00:06]} 63. a5 {[%clk 0:00:02]}  Bb5 {[%clk 0:00:06]} 64. b4 {[%clk 0:00:03]}  Ba6 {[%clk 0:00:06]} 65. Kh1 {[%clk 0:00:03]}  Kf2 {[%clk 0:00:06]} 66. b5 {[%clk 0:00:04]}  Bb7# {[%clk 0:00:07]} 0-1


[Site "https://www.chess.com"]

[Event "Titled Tuesday Blitz July 25 Early 2023"]
[White "Roebers, Eline"]
[Black "Priasmoro, Novendra"]
[WhiteFideId "1058401"]
[BlackFideId "7105029"]
[WhiteElo "2581"]
[BlackElo "2772"]
[Result "0-1"]
[Round "5"]
[TimeControl "180+2"]
[Date "2023.07.25"]
[WhiteClock "0:00:55"]
[BlackClock "0:01:15"]
[Board "53"]

1. e4 {[%clk 0:03:00]}  e5 {[%clk 0:02:56]} 2. Nf3 {[%clk 0:03:01]}  Nc6 {[%clk 0:02:54]} 3. Nc3 {[%clk 0:03:01]}  Nf6 {[%clk 0:02:52]} 4. a3 {[%clk 0:02:55]}  Bc5 {[%clk 0:02:48]} 5. Nxe5 {[%clk 0:02:53]}  Nxe5 {[%clk 0:02:48]} 6. d4 {[%clk 0:02:50]}  Bd6 {[%clk 0:02:48]} 7. f4 {[%clk 0:02:50]}  Nc6 {[%clk 0:02:27]} 8. e5 {[%clk 0:02:42]}  Be7 {[%clk 0:02:27]} 9. exf6 {[%clk 0:02:40]}  Bxf6 {[%clk 0:02:27]} 10. Be3 {[%clk 0:02:37]}  d5 {[%clk 0:02:26]} 11. Qd2 {[%clk 0:02:32]}  O-O {[%clk 0:02:26]} 12. O-O-O {[%clk 0:02:31]}  Re8 {[%clk 0:02:21]} 13. Be2 {[%clk 0:02:24]}  Ne7 {[%clk 0:02:13]} 14. Bf3 {[%clk 0:02:20]}  Nf5 {[%clk 0:01:43]} 15. Bf2 {[%clk 0:02:17]}  c6 {[%clk 0:01:40]} 16. g4 {[%clk 0:02:14]}  Nd6 {[%clk 0:01:34]} 17. Rde1 {[%clk 0:01:47]}  Bd7 {[%clk 0:01:23]} 18. Rxe8+ {[%clk 0:01:38]}  Bxe8 {[%clk 0:01:22]} 19. h4 {[%clk 0:01:37]}  Nc4 {[%clk 0:01:22]} 20. Qd3 {[%clk 0:01:31]}  Qa5 {[%clk 0:01:20]} 21. g5 {[%clk 0:01:27]}  Be7 {[%clk 0:01:21]} 22. Re1 {[%clk 0:01:20]}  Bd6 {[%clk 0:01:21]} 23. Bg3 {[%clk 0:00:55]}  Bxa3 {[%clk 0:01:15]} 0-1


[Site "https://www.chess.com"]

[Event "Titled Tuesday Blitz July 25 Early 2023"]
[White "Ezat, Mohamed"]
[Black "Bauman_Guy"]
[WhiteFideId "10600906"]
[WhiteElo "2580"]
[BlackElo "2768"]
[Result "1-0"]
[Round "5"]
[TimeControl "180+2"]
[Date "2023.07.25"]
[WhiteClock "0:00:27"]
[BlackClock "0:01:26"]
[Board "54"]

1. d4 {[%clk 0:03:00]}  Nf6 {[%clk 0:02:59]} 2. c4 {[%clk 0:03:00]}  e6 {[%clk 0:03:00]} 3. Nc3 {[%clk 0:02:58]}  Bb4 {[%clk 0:02:59]} 4. e3 {[%clk 0:02:56]}  O-O {[%clk 0:02:59]} 5. a3 {[%clk 0:02:55]}  Bxc3+ {[%clk 0:02:58]} 6. bxc3 {[%clk 0:02:56]}  c5 {[%clk 0:02:58]} 7. Bd3 {[%clk 0:02:55]}  Nc6 {[%clk 0:02:58]} 8. Ne2 {[%clk 0:02:54]}  b6 {[%clk 0:02:58]} 9. O-O {[%clk 0:02:53]}  Ba6 {[%clk 0:02:58]} 10. e4 {[%clk 0:02:53]}  Ne8 {[%clk 0:02:58]} 11. Ng3 {[%clk 0:02:51]}  Na5 {[%clk 0:02:58]} 12. f4 {[%clk 0:02:51]}  d5 {[%clk 0:02:50]} 13. cxd5 {[%clk 0:02:46]}  Bxd3 {[%clk 0:02:50]} 14. Qxd3 {[%clk 0:02:45]}  exd5 {[%clk 0:02:50]} 15. e5 {[%clk 0:02:45]}  f6 {[%clk 0:02:49]} 16. Be3 {[%clk 0:02:37]}  Rc8 {[%clk 0:02:47]} 17. Nf5 {[%clk 0:02:30]}  Qd7 {[%clk 0:02:44]} 18. Rae1 {[%clk 0:02:11]}  c4 {[%clk 0:02:33]} 19. Qc2 {[%clk 0:02:08]}  Nc6 {[%clk 0:02:25]} 20. Bd2 {[%clk 0:02:04]}  Nc7 {[%clk 0:02:14]} 21. Ng3 {[%clk 0:01:51]}  Rce8 {[%clk 0:02:08]} 22. a4 {[%clk 0:01:40]}  f5 {[%clk 0:02:08]} 23. Bc1 {[%clk 0:01:37]}  g6 {[%clk 0:02:08]} 24. Ba3 {[%clk 0:01:26]}  Rf7 {[%clk 0:02:08]} 25. Bd6 {[%clk 0:01:23]}  Na5 {[%clk 0:02:08]} 26. Bxc7 {[%clk 0:01:22]}  Qxc7 {[%clk 0:02:08]} 27. Nh1 {[%clk 0:01:19]}  Nc6 {[%clk 0:02:07]} 28. Nf2 {[%clk 0:01:17]}  Nd8 {[%clk 0:02:07]} 29. g4 {[%clk 0:01:12]}  Ne6 {[%clk 0:02:03]} 30. gxf5 {[%clk 0:01:10]}  Rxf5 {[%clk 0:02:03]} 31. Ng4 {[%clk 0:01:10]}  Ref8 {[%clk 0:01:56]} 32. Nh6+ {[%clk 0:01:07]}  Kg7 {[%clk 0:01:57]} 33. Nxf5+ {[%clk 0:01:08]}  Rxf5 {[%clk 0:01:57]} 34. Qg2 {[%clk 0:01:02]}  Qd7 {[%clk 0:01:56]} 35. Qg3 {[%clk 0:00:51]}  Qxa4 {[%clk 0:01:54]} 36. Ra1 {[%clk 0:00:50]}  Qd7 {[%clk 0:01:54]} 37. Ra6 {[%clk 0:00:46]}  Rf7 {[%clk 0:01:50]} 38. f5 {[%clk 0:00:45]}  Qb5 {[%clk 0:01:41]} 39. Raa1 {[%clk 0:00:34]}  Nf8 {[%clk 0:01:40]} 40. e6 {[%clk 0:00:31]}  Rf6 {[%clk 0:01:37]} 41. Rxa7+ {[%clk 0:00:29]}  Kg8 {[%clk 0:01:26]} 42. Qc7 {[%clk 0:00:27]} 1-0


[Site "https://www.chess.com"]

[Event "Titled Tuesday Blitz July 25 Early 2023"]
[White "Zubritskiy, Artyom"]
[Black "Osmak, Yuliia"]
[WhiteFideId "4181247"]
[BlackFideId "14101602"]
[WhiteElo "2749"]
[BlackElo "2511"]
[Result "1-0"]
[Round "5"]
[TimeControl "180+2"]
[Date "2023.07.25"]
[WhiteClock "0:00:32"]
[BlackClock "0:00:12"]
[Board "59"]

1. d4 {[%clk 0:03:00]}  Nf6 {[%clk 0:02:56]} 2. c4 {[%clk 0:03:01]}  g6 {[%clk 0:02:55]} 3. g3 {[%clk 0:03:01]}  Bg7 {[%clk 0:02:55]} 4. Bg2 {[%clk 0:03:02]}  d5 {[%clk 0:02:52]} 5. cxd5 {[%clk 0:03:02]}  Nxd5 {[%clk 0:02:52]} 6. Nc3 {[%clk 0:03:02]}  Nxc3 {[%clk 0:02:48]} 7. bxc3 {[%clk 0:03:03]}  O-O {[%clk 0:02:48]} 8. e3 {[%clk 0:03:03]}  c5 {[%clk 0:02:47]} 9. Nf3 {[%clk 0:03:00]}  Nc6 {[%clk 0:02:37]} 10. O-O {[%clk 0:03:00]}  Be6 {[%clk 0:02:22]} 11. Qe2 {[%clk 0:02:10]}  Na5 {[%clk 0:02:08]} 12. Rd1 {[%clk 0:02:07]}  Qc7 {[%clk 0:01:58]} 13. Ba3 {[%clk 0:02:01]}  Bc4 {[%clk 0:01:52]} 14. Qc2 {[%clk 0:01:53]}  cxd4 {[%clk 0:01:44]} 15. cxd4 {[%clk 0:01:54]}  Rfc8 {[%clk 0:01:40]} 16. Rac1 {[%clk 0:01:48]}  Qd8 {[%clk 0:01:30]} 17. Qd2 {[%clk 0:01:31]}  Bd5 {[%clk 0:01:27]} 18. Bxe7 {[%clk 0:01:25]}  Qxe7 {[%clk 0:01:23]} 19. Qxa5 {[%clk 0:01:25]}  Be4 {[%clk 0:00:52]} 20. Nd2 {[%clk 0:01:16]}  Bxg2 {[%clk 0:00:49]} 21. Kxg2 {[%clk 0:01:16]}  b6 {[%clk 0:00:50]} 22. Qa6 {[%clk 0:01:15]}  Qd7 {[%clk 0:00:46]} 23. Nb3 {[%clk 0:00:59]}  h5 {[%clk 0:00:41]} 24. h4 {[%clk 0:00:58]}  Bf8 {[%clk 0:00:38]} 25. Qe2 {[%clk 0:00:50]}  Ba3 {[%clk 0:00:32]} 26. Rxc8+ {[%clk 0:00:48]}  Rxc8 {[%clk 0:00:33]} 27. Rd2 {[%clk 0:00:44]}  f5 {[%clk 0:00:26]} 28. Rc2 {[%clk 0:00:39]}  Qd5+ {[%clk 0:00:24]} 29. Kg1 {[%clk 0:00:39]}  Rxc2 {[%clk 0:00:18]} 30. Qxc2 {[%clk 0:00:39]}  Qf3 {[%clk 0:00:19]} 31. Qc8+ {[%clk 0:00:35]}  Kg7 {[%clk 0:00:18]} 32. Qc7+ {[%clk 0:00:33]}  Kg8 {[%clk 0:00:15]} 33. Qb8+ {[%clk 0:00:33]}  Kh7 {[%clk 0:00:14]} 34. Qxa7+ {[%clk 0:00:33]}  Kh6 {[%clk 0:00:13]} 35. Qxa3 {[%clk 0:00:33]}  Qd1+ {[%clk 0:00:13]} 36. Kg2 {[%clk 0:00:33]}  Qd3 {[%clk 0:00:14]} 37. Qf8+ {[%clk 0:00:32]}  Kh7 {[%clk 0:00:14]} 38. Qe7+ {[%clk 0:00:33]}  Kh6 {[%clk 0:00:13]} 39. Qe5 {[%clk 0:00:32]}  Qc4 {[%clk 0:00:12]} 40. Qh8# {[%clk 0:00:32]} 1-0


[Site "https://www.chess.com"]

[Event "Titled Tuesday Blitz July 25 Early 2023"]
[White "djokovic74"]
[Black "Mmukka"]
[WhiteElo "2749"]
[BlackElo "2501"]
[Result "1-0"]
[Round "5"]
[TimeControl "180+2"]
[Date "2023.07.25"]
[WhiteClock "0:00:16"]
[BlackClock "0:00:28"]
[Board "60"]

1. e4 {[%clk 0:03:00]}  c5 {[%clk 0:02:59]} 2. Nf3 {[%clk 0:03:01]}  e6 {[%clk 0:02:59]} 3. d4 {[%clk 0:03:01]}  cxd4 {[%clk 0:02:59]} 4. Nxd4 {[%clk 0:03:02]}  a6 {[%clk 0:02:59]} 5. c4 {[%clk 0:03:02]}  Nf6 {[%clk 0:02:58]} 6. Nc3 {[%clk 0:03:02]}  Qc7 {[%clk 0:02:58]} 7. Be2 {[%clk 0:03:02]}  Bb4 {[%clk 0:02:48]} 8. Nc2 {[%clk 0:03:02]}  Bxc3+ {[%clk 0:02:28]} 9. bxc3 {[%clk 0:03:01]}  Nxe4 {[%clk 0:02:29]} 10. Qd4 {[%clk 0:03:01]}  Nf6 {[%clk 0:02:25]} 11. Bf4 {[%clk 0:03:00]}  Qa5 {[%clk 0:02:13]} 12. Bd6 {[%clk 0:02:56]}  Nc6 {[%clk 0:02:13]} 13. Qe3 {[%clk 0:02:53]}  Qa4 {[%clk 0:01:52]} 14. Bd3 {[%clk 0:02:32]}  b5 {[%clk 0:01:48]} 15. c5 {[%clk 0:02:16]}  Nd5 {[%clk 0:01:42]} 16. Qg3 {[%clk 0:02:14]}  g6 {[%clk 0:01:40]} 17. O-O {[%clk 0:01:58]}  Bb7 {[%clk 0:01:28]} 18. Rfe1 {[%clk 0:01:08]}  O-O-O {[%clk 0:01:18]} 19. Re4 {[%clk 0:00:54]}  Qa5 {[%clk 0:01:16]} 20. c4 {[%clk 0:00:46]}  bxc4 {[%clk 0:00:58]} 21. Bxc4 {[%clk 0:00:34]}  f5 {[%clk 0:00:56]} 22. Ree1 {[%clk 0:00:26]}  Qc3 {[%clk 0:00:45]} 23. Bxd5 {[%clk 0:00:26]}  Qxg3 {[%clk 0:00:44]} 24. hxg3 {[%clk 0:00:23]}  exd5 {[%clk 0:00:44]} 25. Ne3 {[%clk 0:00:24]}  Nd4 {[%clk 0:00:34]} 26. Red1 {[%clk 0:00:21]}  Nb5 {[%clk 0:00:34]} 27. Bf4 {[%clk 0:00:17]}  d4 {[%clk 0:00:31]} 28. Nc4 {[%clk 0:00:17]}  d5 {[%clk 0:00:28]} 29. Nb6# {[%clk 0:00:16]} 1-0


[Site "https://www.chess.com"]